[Event "Sants Open 2023"]
[Site "Chess.com"]
[Date "2023.08.26"]
[Round "9"]
[White "Amar, Elham (NORWAY)"]
[Black "Alsina Leal, Daniel"]
[Result "1-0"]
[ECO "B35"]
[WhiteElo "2523"]
[BlackElo "2538"]
[Annotator "IM Sequera Paolini, Jose"]
[PlyCount "79"]
[EventDate "2023.??.??"]
[Source "Analyze This Pro"]
[TimeControl "40/5400+30:1800+30"]

1. e4 {[%emt 0:00:01]} c5 {[%emt 0:03:00]} 2. Nf3 {[%emt 0:00:06]} Nc6 {
[%emt 0:00:23]} 3. d4 {[%emt 0:00:04]} cxd4 {[%emt 0:00:44]} 4. Nxd4 {[%emt 0:
00:04]} g6 {[%emt 0:02:26] En este viaje por las partidas del Campeón de
Sants 2023, nos toca enfrentar esta vez al Dragón acelerado del GM local
Daniel Alsina} 5. Nc3 {[%emt 0:00:09]} Bg7 {[%emt 0:00:25]} 6. Be3 {[%emt 0:00:
03]} Nf6 {[%emt 0:00:20]} 7. Bc4 {[%emt 0:00:06]} O-O {[%emt 0:00:44] Se
amenaza ahora ...Cxe4} 8. Bb3 {[%emt 0:00:05]} Re8 {[%emt 0:00:43]} (8... d5 {
Es muy interesante!}) (8... d6 9. f3) 9. f3 {[%emt 0:00:05]} ({Una idea
también es} 9. f4 d6 10. Qf3 Bd7 (10... Ng4 11. Nxc6 bxc6 12. Bd2) 11. O-O Ng4
12. Nxc6 bxc6 13. Bd2 d5 14. f5 {con juego vivo! Nakamura - Dubov 2020}) 9...
e6 {[%emt 0:00:20]} 10. f4 {[%emt 0:00:03] [#]} Nd5 $5 {[%emt 0:00:39] las
negras buscan complicaciones} ({Ahora} 10... Ng4 {conlleva a ganancias de
tiempos para las blancas en el ataque al flanco de rey, ya que el alfil de c8
no observa directamente la casilla g4} 11. Qxg4 Nxd4 12. O-O-O Nxb3+ 13. axb3
d5 14. e5 Bd7 15. h4 h5 16. Qf3 a5 17. g4 $40) 11. exd5 {[%emt 0:03:13]} exd5 {
[%emt 0:00:28]} 12. O-O {[%emt 0:00:06] se devuelve la pieza sin oponer
ninguna resistencia y se pasa a una posición donde las negras tienen muy mala
estructura que intentarán justificar jugando de manerea dinámica} (12. Nxc6
$4 dxc6 $19 {[%cal Rd5d4]}) 12... Rxe3 {[%emt 0:00:15]} 13. Ndb5 {[%emt 0:00:
12]} d4 {[%emt 0:00:21]} 14. Nd5 {[%emt 0:02:00]} Rxb3 {[%emt 0:00:13] no hay
nada mejor} (14... Re4 15. Qd3 Re6 16. f5) (14... Re6 15. f5 ({Sería un error
ir a buscar una pequeña ventaja material, inexistente además, ya que} 15.
Nbc7 Rb8 16. Nxe6 dxe6 {el caballo blanco está atrapado}) 15... gxf5 16. Rxf5
{las blancas tendrían muchas posibilidades abiertas}) 15. axb3 {[%emt 0:00:50]
} d6 {[%emt 0:00:29]} 16. Re1 {[%emt 0:13:01]} Rb8 {[%emt 0:01:23]} 17. c3 {
[%emt 0:27:22]} dxc3 {[%emt 0:02:45] [#]} (17... Be6 18. Nbc7) 18. Ndxc3 {
[%emt 0:11:34]} ({Veamos} 18. bxc3 a6 19. Nbc7 (19. Nd4 $4 Nxd4 20. cxd4 Be6
21. Ne3 Qb6 {y son las negras las que están mejor}) 19... Bd7 20. b4 Rc8 21.
b5 Rxc7 (21... Nb8 $4 22. Ne7+) 22. Nxc7 Qxc7 23. bxc6 Bxc6 {Vencer a este par
de alfiles será una tarea practicamente imposible}) (18. Nbxc3 Be6 19. Qd3 $14
) 18... Be6 {[%emt 0:10:28]} ({también muy interesante es} 18... a6 19. Qxd6 (
19. Nxd6 $4 Bd4+) 19... Bf5 20. Qxd8+ Rxd8 21. Nc7 Kf8 22. Rad1 Bd4+ 23. Kh1
Rd7 {complicado}) 19. Qxd6 {[%emt 0:04:37]} Qxd6 {[%emt 0:18:53]} 20. Nxd6 {
[%emt 0:00:06] [#]} a6 $6 {[%emt 0:16:23] por razones tácticas, no es
necesario la defensa de este peón} (20... Nd4 21. Rad1 (21. Rxa7 Nf3+ 22. gxf3
Bd4+ 23. Kg2 Bxa7) 21... a5 22. Nc4 Nxb3 $13) 21. Nc4 {[%emt 0:09:33] [#]} (21.
Rad1 Bxb3 22. Rd2 {Posición incierta}) 21... Nd4 $6 {[%emt 0:01:40]} ({
Es una posición muy instructiva. Las negras con calidad de menos deben buscar,
no tanto ganar algún peón, sino evitar que las piezas blancas se sitúen con
comodidad. En este sentido la jugada dinámica} 21... b5 $1 22. Ne5 ({si} 22.
Rxa6 Bxc3 23. bxc3 bxc4 24. Rxc6 cxb3 $11) (22. Na5 Nxa5 23. Rxa5 Bxb3 24. Rxa6
Bd4+ 25. Kh1 b4 {las negras practicamente no tienen problemas}) (22. Nd6 b4 23.
Nce4 a5 $13) 22... Nxe5 23. fxe5 b4 24. Nd1 Rb5 25. Rxa6 Bxe5 $13) 22. Rad1 {
[%emt 0:01:05]} Nxb3 {[%emt 0:03:47]} 23. Ne5 {[%emt 0:00:27]} Rc8 {[%emt 0:07:
57]} 24. Ne4 {[%emt 0:04:14]} h6 $2 {[%emt 0:10:29] Las negras necesitan
despejar la el peligro sobre la última fila, pero se deja un tema táctico}
25. Nxg6 {[%emt 0:06:27]} Kh7 {[%emt 0:09:21]} 26. f5 {[%emt 0:02:18]} Bxf5 {
[%emt 0:03:58]} 27. Ne7 {[%emt 0:00:05]} Bxe4 {[%emt 0:01:18]} 28. Nxc8 {
[%emt 0:00:10]} Bg6 {[%emt 0:00:44]} 29. Ne7 {[%emt 0:00:46]} Bc2 {[%emt 0:01:
03]} 30. Rd7 {[%emt 0:00:48]} Bxb2 {[%emt 0:02:16]} 31. Re2 {[%emt 0:04:26]}
Bd4+ {[%emt 0:01:18]} 32. Rxd4 {[%emt 0:00:38]} Nxd4 {[%emt 0:00:08]} 33. Rd2 {
[%emt 0:00:02]} a5 {[%emt 0:01:04]} 34. Rxd4 {[%emt 0:00:09]} a4 {[%emt 0:00:
26]} 35. Nd5 {[%emt 0:00:17]} a3 {[%emt 0:00:30]} 36. Nb4 {[%emt 0:00:03]} Bb3
{[%emt 0:00:26]} 37. Rd8 {[%emt 0:00:28]} b5 {[%emt 0:00:36]} 38. Ra8 {[%emt 0:
00:55]} Ba4 {[%emt 0:00:14]} 39. Re8 {[%emt 0:00:14]} Bb3 {[%emt 0:00:38]} 40.
Re1 {[%emt 0:00:00]} 1-0